bitfinex-derivatives/quotes_SOLF0:USTF0_20260312
["timestamp","ask_amount","ask_price","bid_price","bid_amount"]
[1773311901513,43.56,86.838,86.766,60.49217126]
[1773311901719,6.19857034,86.84,86.766,60.49217126]
[1773311901720,8.4395535,86.837,86.766,60.49217126]
[1773311902019,6.19857034,86.84,86.766,60.49217126]
[1773311902317,10.365,86.822,86.775,60.49217126]
[1773311903110,10.366,86.816,86.775,60.49217126]
[1773311904018,6.19857034,86.84,86.755,60.47059602]
[1773311905720,10.368,86.8,86.755,60.47059602]
[1773311906121,6.19857034,86.84,86.755,60.47059602]
[1773311907919,10.367,86.807,86.764,60.44814477]
[1773311908121,6.19857034,86.84,86.764,60.44814477]
[1773311909925,20.727,86.837,86.764,60.44814477]
[1773311912020,10.367,86.81,86.766,60.45240878]
[1773311914925,20.727,86.837,86.766,60.45240878]
[1773311915125,6.19857034,86.84,86.766,60.45240878]
[1773311915519,2.47748664,86.82,86.766,60.45240878]
[1773311915823,2.47748664,86.83,86.766,60.45240878]
[1773311916516,2.47748664,86.82,86.766,60.45240878]
[1773311917023,10.366,86.816,86.775,60.47330523]
[1773311917416,2.47748664,86.82,86.775,60.47330523]
[1773311917824,10.367,86.809,86.775,60.47330523]
[1773311918423,10.366,86.816,86.775,60.47330523]
[1773311919527,2.47748664,86.82,86.778,60.47219689]
[1773311919720,2.47748664,86.83,86.778,60.47219689]
[1773311920521,2.47748664,86.84,86.778,60.47219689]
[1773311920723,2.47748664,86.84,86.78,62.94968353]
[1773311921216,10.365,86.826,86.783,60.47219689]
[1773311921419,2.47748664,86.84,86.783,60.47219689]
[1773311921722,2.47748664,86.84,86.787,60.48663691]
[1773311921723,10.364,86.833,86.787,60.48663691]
[1773311923817,43.54,86.849,86.796,60.45968074]
[1773311924428,2.47748664,86.84,86.796,60.45968074]
[1773311924628,2.47748664,86.83,86.774,60.45968074]
[1773311925130,10.365,86.822,86.774,60.45968074]
[1773311926229,2.47748664,86.8,86.741,60.46105213]
[1773311926932,10.368,86.797,86.748,60.46105213]
[1773311927123,2.47748664,86.8,86.748,60.46105213]
[1773311928220,10.368,86.798,86.752,60.41184577]
[1773311928430,2.47748664,86.8,86.752,60.41184577]
[1773311928623,2.47748664,86.8,86.715,43.54]
[1773311928624,43.54,86.818,86.761,60.41184577]
[1773311928825,10.366,86.815,86.769,60.41184577]
[1773311929329,10.366,86.815,86.771,60.41184577]
[1773311930225,10.366,86.815,86.748,43.54]
[1773311930226,10.365,86.824,86.775,60.41275435]
[1773311932033,10.365,86.824,86.779,60.412338]
[1773311938135,10.366,86.818,86.779,60.412338]
[1773311939339,10.365,86.825,86.779,60.412338]
[1773311940043,2.47748664,86.85,86.791,60.39563815]
[1773311940939,10.362,86.847,86.801,60.39563815]
[1773311941143,10.74997503,86.885,86.801,60.39563815]
[1773311941144,2.47748664,86.87,86.801,60.39563815]
[1773311941544,8.50581822,86.871,86.811,60.40627189]
[1773311941842,43.54,86.872,86.811,60.40627189]
[1773311942036,53.899,86.872,86.823,60.40627189]
[1773311942237,2.47748664,86.89,86.823,60.40627189]
[1773311942438,2.47748664,86.89,86.831,60.40627189]
[1773311942842,2.47748664,86.88,86.833,60.40627189]
[1773311943537,10.359,86.873,86.833,60.40627189]
[1773311944746,10.358,86.883,86.833,60.40627189]
[1773311945249,2.47748664,86.89,86.833,60.40627189]
[1773311945452,2.47748664,86.88,86.833,60.40627189]
[1773311949042,2.47748664,86.87,86.833,60.40627189]
[1773311949649,2.47748664,86.88,86.833,60.40627189]
[1773311952251,10.357,86.887,86.833,60.40627189]
[1773311952453,2.47748664,86.88,86.833,60.40627189]
[1773311953750,2.47428343,86.88,86.833,60.40627189]
[1773311956752,10.357,86.887,86.833,60.40627189]
[1773311956753,10.357,86.887,86.833,70.77027189]
[1773311957051,53.877,86.887,86.833,70.77027189]
[1773311958945,12.83228343,86.88,86.833,60.40627189]
[1773311959753,2.47428343,86.86,86.833,60.40627189]
[1773311959954,2.47428343,86.87,86.833,60.40627189]
[1773311960153,2.47428343,86.88,86.833,60.40627189]
[1773311960954,10.359,86.877,86.833,60.40627189]
[1773311963155,2.47428343,86.87,86.833,60.40627189]
[1773311963459,12.83328343,86.87,86.833,60.40627189]
[1773311963962,2.47428343,86.86,86.812,59.08638973]
[1773311965255,2.47428343,86.88,86.82,2.47428343]
[1773311965560,43.52,86.883,86.821,59.08638973]
[1773311965961,2.47428343,86.84,86.791,59.0875717]
[1773311966160,2.00364456,86.911,86.791,59.0875717]
[1773311966161,43.52,86.854,86.791,59.0875717]
[1773311966362,2.47428343,86.85,86.791,59.0875717]
[1773311966663,2.47428343,86.85,86.799,59.0875717]
[1773311967859,10.362,86.848,86.799,59.0875717]
[1773311971355,2.47428343,86.87,86.811,58.97241164]
[1773311972867,10.36,86.867,86.815,10.366]
[1773311973068,2.47428343,86.87,86.816,58.97241164]
[1773311973766,10.36,86.86,86.816,58.97241164]
[1773311973961,43.52,86.877,86.816,58.97241164]
[1773311974360,2.47428343,86.88,86.816,58.97241164]
[1773311974868,10.36,86.868,86.818,58.97438883]
[1773311977370,10.358,86.884,86.837,58.97710127]
[1773311977666,10.358,86.884,86.841,58.99380722]
[1773311978262,10.357,86.893,86.845,58.99380722]
[1773311978565,8.90864129,86.906,86.851,58.99380722]
[1773311979569,43.52,86.907,86.861,59.05278228]
[1773311980172,10.355,86.905,86.861,59.05278228]
[1773311985072,10.355,86.903,86.861,59.05278228]
[1773311985570,43.52,86.919,86.861,59.05278228]
[1773311985767,8.91686976,86.918,86.861,59.05278228]
[1773311986278,43.52,86.919,86.861,59.05278228]
[1773311987078,43.52,86.919,86.871,59.04962034]
[1773311988976,10.355,86.907,86.871,59.04962034]
[1773311989474,10.354,86.915,86.871,59.04962034]
[1773311989675,2.47428343,86.91,86.871,59.04962034]
[1773311990178,10.354,86.917,86.871,59.04962034]
[1773311990570,43.52,86.919,86.871,59.04962034]
[1773311990777,2.47428343,86.92,86.871,59.04962034]
[1773311990977,43.5,86.913,86.871,59.04962034]
[1773311991882,53.854,86.913,86.871,59.04962034]
[1773311992783,43.5,86.913,86.871,59.04962034]
[1773311992976,2.00296416,86.941,86.873,59.05213738]
[1773311993177,2.47428343,86.93,86.873,59.05213738]
[1773311993377,43.5,86.929,86.881,29.43931634]
[1773311993577,10.351,86.936,86.881,29.43931634]
[1773311993880,43.5,86.935,86.881,29.43931634]
[1773311994280,2.47428343,86.93,86.884,29.44108858]
[1773311995077,2.00248008,86.961,86.891,7.69108858]
[1773311995078,2.47428343,86.95,86.891,7.69108858]
[1773311995277,2.47428343,86.94,86.891,7.69108858]
[1773311996883,2.47428343,86.93,86.891,7.69108858]
[1773311997485,10.352,86.928,86.891,7.69108858]
[1773311997786,2.47428343,86.91,86.871,7.72635775]
[1773311998084,2.47428343,86.89,86.834,7.72635775]
[1773311998688,12.83228343,86.88,86.834,7.72635775]
[1773311998880,2.47428343,86.88,86.834,7.72635775]
[1773311999283,2.47428343,86.87,86.834,7.72635775]
[1773311999885,20.705,86.93,86.834,7.72635775]
[1773312000085,2.47428343,86.89,86.834,7.72635775]
[1773312000480,10.356,86.898,86.844,7.73050266]
[1773312000686,2.47428343,86.9,86.844,7.73050266]
[1773312000985,2.47428343,86.91,86.851,7.73050266]
[1773312001180,10.354,86.916,86.856,7.73050266]
[1773312001386,2.47428343,86.93,86.87,2.47428343]
[1773312001684,10.352,86.933,86.891,7.78808196]
[1773312001887,2.47428343,86.93,86.891,7.78808196]
[1773312002586,2.47428343,86.91,86.861,7.78808196]
[1773312003385,2.47428343,86.93,86.871,6.53305175]
[1773312003590,2.47428343,86.94,86.871,6.53305175]
[1773312003786,10.35,86.946,86.895,10.356]
[1773312004093,2.47428343,86.96,86.901,6.53305175]
[1773312004794,2.47428343,86.95,86.901,6.53305175]
[1773312005090,2.47428343,86.93,86.871,6.53305175]
[1773312005287,2.47428343,86.9,86.871,6.53305175]
[1773312005483,2.47428343,86.91,86.871,6.53305175]
[1773312005687,2.47428343,86.9,86.841,6.51566207]
[1773312005889,2.47428343,86.89,86.841,6.51566207]
[1773312006492,10.355,86.905,86.847,6.51566207]
[1773312007983,10.355,86.905,86.855,6.44872741]
[1773312008491,2.47428343,86.89,86.855,6.44872741]
[1773312009385,2.47428343,86.88,86.831,6.44872741]
[1773312009793,2.47428343,86.87,86.831,6.44872741]
[1773312009996,10.74997503,86.922,86.831,6.44872741]
[1773312010187,2.47428343,86.88,86.831,6.44872741]
[1773312010390,2.47428343,86.89,86.844,6.44619397]
[1773312010694,10.356,86.899,86.844,6.44619397]
[1773312012092,10.355,86.908,86.846,6.44854327]
[1773312012391,2.47428343,86.92,86.861,6.44854327]
[1773312012793,2.47428343,86.92,86.809,43.5]
[1773312012794,2.47428343,86.94,86.881,6.44854327]
[1773312012997,10.74997503,86.969,86.881,6.44854327]
[1773312012998,2.47428343,86.93,86.881,6.44854327]
[1773312013293,2.47428343,86.95,86.891,6.44854327]
[1773312013494,2.47428343,86.96,86.901,6.46676858]
[1773312013694,10.349,86.958,86.904,6.46676858]
[1773312014293,10.35,86.95,86.889,6.46676858]
[1773312014494,2.4695525,86.94,86.891,6.46676858]
[1773312014797,2.4695525,86.93,86.891,6.46676858]
[1773312015098,10.74997503,86.976,86.891,6.46676858]
[1773312015300,8.72900248,86.977,86.873,6.46676858]
[1773312015301,2.4695525,86.92,86.873,6.46676858]
[1773312015495,2.4695525,86.93,86.873,6.46676858]
[1773312015699,10.351,86.941,86.873,6.46676858]
[1773312015902,6.17911031,86.97,86.873,6.46676858]
[1773312016302,14.90811279,86.97,86.873,6.46676858]
[1773312016499,10.348,86.963,86.888,6.43261534]
[1773312017701,6.17911031,86.97,86.888,6.43261534]
[1773312017702,10.349,86.954,86.888,6.43261534]
[1773312018199,6.17911031,86.97,86.888,6.43261534]
[1773312018810,10.352,86.935,86.888,6.43261534]
[1773312020601,10.35,86.945,86.888,6.43261534]
[1773312021401,10.351,86.936,86.876,10.359]
[1773312021600,10.351,86.936,86.877,6.39560948]
[1773312021794,6.17911031,86.95,86.877,6.39560948]
[1773312022001,10.353,86.926,86.877,6.39560948]
[1773312022201,16.92908534,86.95,86.877,6.39560948]
[1773312022403,6.17911031,86.93,86.877,6.39560948]
[1773312022602,6.17911031,86.93,86.861,6.39560948]
[1773312023597,14.25661946,86.956,86.81,43.48]
[1773312023598,10.74997503,86.966,86.871,6.46056157]
[1773312024296,10.74997503,86.961,86.871,6.46056157]
[1773312024501,2.87609691,86.96,86.871,6.46056157]
[1773312024808,10.74997503,86.958,86.871,6.46056157]
[1773312025010,10.352,86.93,86.878,6.46056157]
[1773312025200,2.87609691,86.956,86.878,6.46056157]
[1773312025405,2.87609691,86.955,86.878,6.46056157]
[1773312025600,2.87609691,86.954,86.889,6.46094039]
[1773312025804,2.87609691,86.953,86.889,6.46094039]
[1773312026012,2.87609691,86.952,86.889,6.46094039]
[1773312026204,2.87609691,86.951,86.889,6.46094039]
[1773312026404,2.87609691,86.95,86.889,6.46094039]
[1773312026608,2.87609691,86.949,86.889,6.46094039]
[1773312026810,2.87609691,86.948,86.889,6.46094039]
[1773312027012,10.351,86.94,86.889,6.46094039]
[1773312028711,10.352,86.933,86.889,6.46094039]
[1773312030210,6.17911031,86.95,86.889,6.46094039]
[1773312030415,2.87659764,86.949,86.873,6.47303904]
[1773312030608,2.87659764,86.948,86.873,6.47303904]
[1773312030812,2.87659764,86.947,86.873,6.47303904]
[1773312031111,6.17911031,86.93,86.873,6.47303904]
[1773312031316,2.87659764,86.929,86.873,6.47303904]
[1773312031517,2.87659764,86.928,86.873,6.47303904]
[1773312031711,2.87659764,86.927,86.873,6.47303904]
[1773312031914,10.354,86.913,86.873,6.47303904]
[1773312033212,10.353,86.921,86.873,6.47303904]
[1773312034114,10.354,86.912,86.873,6.47303904]
[1773312034414,2.87659764,86.929,86.876,6.43810504]
[1773312034616,10.351,86.943,86.888,6.43810504]
[1773312035210,10.35,86.952,86.89,6.43810504]
[1773312035420,2.87659764,86.951,86.89,6.43810504]
[1773312035717,2.87659764,86.95,86.89,6.43810504]
[1773312036014,2.87659764,86.958,86.893,6.41934211]
[1773312036213,2.87659764,86.957,86.896,6.41934211]
[1773312036410,10.35,86.949,86.897,10.356]
[1773312036714,10.35,86.949,86.898,6.41934211]
[1773312037918,10.351,86.939,86.898,6.41934211]
[1773312038919,10.352,86.931,86.898,6.41934211]
[1773312039117,10.352,86.931,86.883,6.41853349]
[1773312041326,2.87659764,86.959,86.891,6.42918084]
[1773312041625,2.87659764,86.959,86.878,14.03216757]
[1773312041626,2.87659764,86.958,86.895,6.42923235]
[1773312041814,2.87659764,86.957,86.895,6.42923235]
[1773312042019,2.87659764,86.956,86.895,6.42923235]
[1773312042219,2.87659764,86.955,86.895,6.42923235]
[1773312042425,10.351,86.941,86.895,6.42923235]
[1773312043222,2.87659764,86.951,86.895,6.42923235]
[1773312043415,6.17911031,86.96,86.895,6.42923235]
[1773312043416,2.87659764,86.95,86.895,6.42923235]
[1773312043727,2.87659764,86.949,86.895,6.42923235]
[1773312043916,2.87659764,86.948,86.895,6.42923235]
[1773312044120,2.87659764,86.947,86.895,6.42923235]
[1773312044320,10.352,86.928,86.895,6.42923235]
[1773312044719,2.87659764,86.944,86.895,6.42923235]
[1773312044917,2.87659764,86.943,86.895,6.42923235]
[1773312045123,10.352,86.931,86.895,6.42923235]
[1773312045626,2.87659764,86.94,86.883,6.41672982]
[1773312045822,2.87659764,86.939,86.883,6.41672982]
[1773312046023,10.353,86.925,86.883,6.41672982]
[1773312046327,2.87659764,86.937,86.883,6.41672982]
[1773312046625,2.87659764,86.936,86.883,6.41672982]
[1773312046821,6.17911031,86.96,86.883,6.41672982]
[1773312046822,10.353,86.927,86.883,6.41672982]
[1773312048123,10.353,86.927,86.884,6.41607735]
[1773312048522,10.352,86.935,86.886,6.41607735]
[1773312049026,6.17911031,86.96,86.886,6.41607735]
[1773312049027,2.87659764,86.934,86.886,6.41607735]
[1773312049226,10.352,86.933,86.886,6.41607735]
[1773312049623,2.87659764,86.957,86.886,6.41607735]
[1773312049825,46.35659764,86.956,86.886,6.41607735]
[1773312050125,2.87659764,86.955,86.886,6.41607735]
[1773312050325,2.87659764,86.954,86.886,6.41607735]
[1773312050526,10.352,86.934,86.886,6.41607735]
[1773312050728,2.87659764,86.933,86.886,6.41607735]
[1773312050932,2.87659764,86.955,86.886,6.41607735]
[1773312051127,10.353,86.927,86.886,6.41607735]
[1773312051328,2.87659764,86.953,86.886,6.41607735]
[1773312051628,43.48,86.956,86.886,6.41607735]
[1773312051629,2.87659764,86.952,86.886,6.41607735]
[1773312051822,10.72165354,86.972,86.888,6.41312163]
[1773312052026,6.17911031,87.03,86.926,6.41312163]
[1773312052226,6.17911031,87.03,86.925,10.51964671]
[1773312052227,2.00166806,87.011,86.933,6.41312163]
[1773312052429,2.00166806,87.011,86.94,6.41312163]
[1773312052729,2.00096023,87.021,86.94,6.41312163]
[1773312053026,43.48,87.02,86.951,6.41312163]
[1773312053531,10.343,87.005,86.955,6.42527436]
[1773312053716,43.48,87.02,86.955,6.42527436]
[1773312054924,10.344,86.997,86.955,6.42527436]
[1773312056128,10.343,87.007,86.955,6.42527436]
[1773312056323,43.48,87.02,86.955,6.42527436]
[1773312056528,49.65911031,87.02,86.938,6.55481189]
[1773312056734,20.684,87.019,86.938,6.55481189]
[1773312056932,29.21548067,87.019,86.938,6.55481189]
[1773312057126,8.53148067,87.019,86.938,6.55481189]
[1773312057331,10.343,87.005,86.938,6.55481189]
[1773312057636,43.48,87.008,86.941,6.54141127]
[1773312057929,8.53065054,87.007,86.901,6.54141127]
[1773312058330,8.53065054,87.007,86.9,6.17911031]
[1773312058331,10.346,86.978,86.924,6.54141127]
[1773312059124,8.53065054,87.007,86.924,6.54141127]
[1773312059526,6.17911031,87.0,86.924,6.54141127]
[1773312060324,43.48,86.999,86.924,6.54141127]
[1773312060632,8.53065054,86.998,86.924,6.54141127]
[1773312061028,43.48,86.997,86.924,6.54141127]
[1773312061629,43.48,86.997,86.926,6.53007369]
[1773312061825,43.48,87.01,86.931,6.53007369]
[1773312062133,43.48,87.011,86.931,6.53007369]
[1773312062933,10.343,87.009,86.953,6.53007369]
[1773312063126,43.48,87.011,86.953,6.53007369]
[1773312064032,43.48,87.011,86.956,6.51571198]
[1773312064033,10.343,87.004,86.956,6.51571198]
[1773312066534,43.46,87.022,86.956,6.51571198]
[1773312066723,43.46,87.021,86.956,6.51571198]
[1773312067224,2.00074741,87.041,86.956,6.51571198]
[1773312067427,43.46,87.026,86.956,6.51571198]
[1773312068329,2.00074741,87.041,86.956,6.51571198]
[1773312068531,43.46,87.025,86.956,6.51571198]
[1773312068737,43.46,87.025,86.931,20.705]
[1773312068738,43.46,87.025,86.971,6.51336453]
[1773312071035,10.342,87.012,86.971,6.51336453]
[1773312074837,10.343,87.006,86.971,6.51336453]
[1773312077339,43.46,87.025,86.95,6.373909]
[1773312078038,43.46,87.025,86.96,6.37325692]
[1773312078732,43.46,87.025,86.962,6.37325692]
[1773312079039,43.46,87.024,86.962,6.37325692]
[1773312079339,6.16725214,87.05,86.962,6.37325692]
[1773312079340,43.46,87.023,86.962,6.37325692]
[1773312079537,43.46,87.022,86.971,6.37284995]
[1773312079738,43.46,87.021,86.971,6.37284995]
[1773312079935,10.342,87.02,86.974,6.37284995]
[1773312080937,10.342,87.02,86.98,2.46622836]
[1773312082225,43.46,87.021,86.974,6.37284995]
[1773312082737,10.343,87.007,86.974,6.37284995]
[1773312085439,43.46,87.008,86.974,6.37284995]
[1773312087139,43.46,87.008,86.98,2.46622836]
[1773312087932,10.341,87.022,86.981,6.36001565]
[1773312088137,43.44,87.021,86.99,8.82624401]
[1773312088337,43.44,87.021,86.99,6.36001565]
[1773312088532,10.341,87.022,86.99,6.36001565]
[1773312088739,43.44,87.07,87.01,2.46622836]
[1773312088935,43.44,87.07,87.03,2.46622836]
[1773312089140,43.44,87.07,87.02,2.46622836]
[1773312089437,10.337,87.058,87.021,6.35663303]
[1773312089643,43.44,87.063,87.03,2.46622836]
[1773312090046,43.44,87.063,87.021,6.35663303]
[1773312090642,43.44,87.063,87.007,6.35663303]
[1773312090946,10.338,87.05,87.01,2.46622836]
[1773312091143,43.44,87.063,87.011,6.35663303]
[1773312091740,43.44,87.063,86.981,6.26179456]
[1773312091944,2.46622836,87.05,86.981,6.26179456]
[1773312092941,10.341,87.028,86.981,6.26179456]
[1773312093644,10.341,87.02,86.981,6.26179456]
[1773312094142,8.48778616,87.062,86.981,6.26179456]
[1773312094347,2.46622836,87.05,86.985,6.25731658]
[1773312095943,10.341,87.022,86.985,6.25731658]
[1773312098947,10.34,87.03,86.985,6.25731658]
[1773312099248,10.34,87.03,86.99,2.46622836]
[1773312100552,10.341,87.023,86.99,2.46622836]
[1773312101154,10.341,87.023,86.985,6.25731658]
[1773312103258,10.341,87.023,86.99,2.46622836]
[1773312104256,2.46622836,87.04,86.971,6.22404147]
[1773312104553,2.46622836,87.04,86.98,2.46622836]
[1773312104861,2.46622836,87.05,86.981,6.22404147]
[1773312105053,10.72165354,87.053,86.95,6.22404147]
[1773312105054,2.46622836,87.04,86.95,6.22404147]
[1773312105353,43.44,87.039,86.991,6.22681577]
[1773312105557,8.48778616,87.038,86.991,6.22681577]
[1773312106261,10.342,87.016,86.991,6.22681577]
[1773312106852,10.341,87.024,86.991,6.22681577]
[1773312107955,8.48778616,87.044,86.991,6.22681577]
[1773312108560,10.341,87.021,86.988,6.20361804]
[1773312109761,10.342,87.012,86.988,6.20361804]
[1773312110663,10.342,87.012,86.98,2.46622836]
[1773312111461,2.46622836,87.03,86.96,6.21650529]
[1773312111660,2.46622836,87.02,86.96,8.68273365]
[1773312112357,2.46622836,87.02,86.961,6.21650529]
[1773312112557,2.46622836,87.03,86.961,6.21650529]
[1773312112759,43.44,87.045,86.932,6.21650529]
[1773312112760,2.46622836,87.0,86.932,6.21650529]
[1773312112962,10.72165354,87.022,86.932,6.21650529]
[1773312113159,2.46622836,87.0,86.932,6.21650529]
[1773312113360,10.347,86.973,86.932,6.21650529]
[1773312113864,10.348,86.965,86.932,6.21650529]
[1773312114861,10.347,86.973,86.932,6.21650529]
[1773312115070,2.46622836,86.99,86.92,2.46622836]
[1773312115264,2.46622836,86.98,86.92,2.46622836]
[1773312115464,2.46622836,86.98,86.918,6.20272502]
[1773312115660,43.44,86.98,86.93,2.46622836]
[1773312115864,43.44,86.98,86.931,6.27440456]
[1773312116263,10.347,86.971,86.931,6.27440456]
[1773312116568,45.90622836,86.98,86.92,2.46622836]
[1773312116768,45.90622836,86.98,86.921,6.27440456]
[1773312117275,43.44,86.98,86.921,6.27440456]
[1773312117471,10.348,86.964,86.921,6.27440456]
[1773312118776,43.44,86.98,86.921,6.27440456]
[1773312118777,45.90622836,86.98,86.921,6.27440456]
[1773312119377,43.44,86.98,86.921,6.27440456]
[1773312119774,10.347,86.974,86.93,8.71425576]
[1773312120180,43.44,86.98,86.93,8.71425576]
[1773312120378,43.44,86.98,86.93,6.2480274]
[1773312120578,45.90622836,86.98,86.93,6.2480274]
[1773312120781,10.348,86.966,86.93,6.2480274]
[1773312120978,10.348,86.966,86.93,8.71425576]
[1773312121177,45.90622836,86.98,86.92,2.46622836]
[1773312121379,45.90622836,86.98,86.921,6.2480274]
[1773312121976,10.349,86.958,86.921,6.2480274]
[1773312122283,45.90622836,86.98,86.921,6.2480274]
[1773312122880,43.44,86.98,86.921,6.2480274]
[1773312123076,10.348,86.963,86.921,6.2480274]
[1773312123275,43.44,86.98,86.921,6.2480274]
[1773312123276,45.90622836,86.98,86.921,6.2480274]
[1773312124776,10.349,86.957,86.921,6.2480274]
[1773312126379,43.44,86.98,86.921,6.2480274]
[1773312126588,43.46,87.015,86.97,2.46622836]
[1773312126890,43.46,87.019,86.97,2.46622836]
[1773312127276,43.46,87.018,86.97,2.46622836]
[1773312128185,43.46,87.018,86.961,6.256186]
[1773312130192,10.345,86.994,86.961,6.256186]
[1773312130893,10.346,86.986,86.961,6.256186]
[1773312131089,2.46622836,87.01,86.961,6.256186]
[1773312131281,43.46,87.018,86.961,6.256186]
[1773312131486,2.46622836,87.01,86.961,6.256186]
[1773312132990,10.345,86.993,86.961,6.256186]
[1773312134192,43.46,87.004,86.912,20.709]
[1773312134193,10.345,86.986,86.946,6.17586323]
[1773312134884,2.46622836,87.0,86.933,6.17586323]
[1773312134885,10.346,86.98,86.933,6.17586323]
[1773312135287,43.46,87.004,86.96,6.17586323]
[1773312135690,2.46733332,87.0,86.94,8.62969982]
[1773312135892,2.46733332,86.98,86.94,6.1623665]
[1773312136091,2.46733332,86.97,86.921,6.1623665]
[1773312136282,10.349,86.96,86.921,6.1623665]
[1773312137093,10.349,86.953,86.921,6.1623665]
[1773312137287,2.46733332,86.97,86.921,6.1623665]
[1773312138190,10.0861442,87.009,86.94,2.46733332]
[1773312138388,10.0861442,87.009,86.95,2.46733332]
[1773312139886,10.344,86.996,86.953,10.349]
[1773312140184,10.344,86.996,86.95,2.46733332]
[1773312140382,10.07116725,86.995,86.94,2.46733332]
[1773312140594,10.07144756,86.989,86.93,2.46733332]
[1773312140996,10.347,86.974,86.931,10.352]
[1773312141898,10.347,86.974,86.924,10.353]
[1773312142094,10.347,86.974,86.92,2.46733332]
[1773312142299,10.09615443,86.976,86.931,10.352]
[1773312142500,10.09615443,86.976,86.92,2.46733332]
[1773312142694,10.09615443,86.976,86.93,2.46733332]
[1773312144000,10.09615443,86.976,86.932,10.352]
[1773312144895,10.09960738,86.975,86.93,2.46733332]
[1773312145100,10.09960738,86.975,86.924,10.353]
[1773312146100,10.09960738,86.975,86.933,10.352]
[1773312147102,10.345,86.989,86.941,10.351]
[1773312147403,10.09759276,86.988,86.941,10.351]
[1773312148104,10.345,86.987,86.94,2.46733332]
[1773312148303,10.09759276,86.988,86.94,2.46733332]
[1773312148602,10.09759276,86.988,86.934,10.352]
[1773312149897,10.09759276,86.988,86.94,10.351]
[1773312150098,10.09759276,86.988,86.94,2.46733332]
[1773312150395,10.347,86.976,86.93,2.46733332]
[1773312150791,10.12494892,86.973,86.93,2.46733332]
[1773312150997,10.68773964,87.021,86.96,2.46733332]
[1773312151197,10.12494892,87.027,87.0,2.46733332]
[1773312151393,43.46,87.038,87.0,2.46733332]
[1773312151694,43.46,87.038,86.925,34.55]
[1773312151695,10.12494892,87.044,86.97,6.16196133]
[1773312152296,20.46394892,87.044,86.997,10.344]
[1773312155007,9.95271574,87.032,86.981,10.346]
[1773312156106,9.95271574,87.032,86.988,10.345]
[1773312156903,9.96741588,87.03,86.96,6.16196133]
[1773312157210,9.96741588,87.03,86.94,6.16196133]
[1773312158002,9.91964962,87.028,86.94,6.16196133]
[1773312158209,9.91964962,87.02,86.94,6.16196133]
[1773312158906,10.342,87.017,86.964,10.348]
[1773312159110,9.91964962,87.016,86.964,10.348]
[1773312159614,9.83327322,87.008,86.92,6.16196133]
[1773312159805,9.83327322,87.008,86.911,20.709]
[1773312160205,9.83327322,87.008,86.92,6.16196133]
[1773312162005,10.345,86.991,86.944,10.35]
[1773312163604,9.84687101,86.988,86.944,10.35]
[1773312164010,9.84687101,86.988,86.935,10.351]
[1773312164412,9.84687101,86.988,86.9,6.16196133]
[1773312165605,43.44,86.998,86.938,10.351]
[1773312165606,9.85439195,86.986,86.938,10.351]
[1773312166612,9.85439195,86.986,86.9,27.15031581]
[1773312166816,9.85439195,86.986,86.901,20.98835448]
[1773312167217,9.85439195,86.986,86.912,20.709]
[1773312169215,9.85439195,86.986,86.934,10.352]
[1773312171021,9.8679064,86.981,86.934,10.352]
[1773312171425,9.8679064,86.981,86.9,6.16196133]
[1773312171722,9.8679064,86.981,86.902,20.711]
[1773312173020,9.8679064,86.981,86.936,10.351]
[1773312174130,9.84875948,86.977,86.929,10.352]
[1773312174331,9.84875948,86.977,86.92,2.46798185]
[1773312174528,8.50446603,87.007,86.886,64.42835448]
[1773312174529,9.84875948,86.969,86.91,2.46798185]
[1773312174732,9.84875948,86.96,86.919,10.353]
[1773312174924,9.84875948,86.959,86.919,10.353]
[1773312176429,9.84875948,86.959,86.9,2.46798185]
[1773312176731,9.84875948,86.959,86.911,10.354]
[1773312177424,9.84875948,86.959,86.902,10.355]
[1773312177628,2.46798185,86.96,86.9,2.46798185]
[1773312177629,9.81246314,86.949,86.9,2.46798185]
[1773312178434,9.81246314,86.949,86.91,2.46798185]
[1773312179235,9.81246314,86.949,86.907,10.355]
[1773312179433,9.81246314,86.949,86.9,2.46798185]
[1773312179434,10.35,86.947,86.9,2.46798185]
[1773312179835,9.81246314,86.949,86.9,2.46798185]
[1773312180527,10.35,86.948,86.903,10.355]
[1773312180734,9.80256635,86.947,86.903,10.355]